[Event "Norwegian Championship 2022"]
[Site "Kongsvinger, Norway"]
[Date "2022.07.08"]
[Round "1"]
[White "Vestby-Ellingsen, Mads"]
[Black "Østmoe, Geir Sune Tallaksen"]
[Result "0-1"]
[Board "5"]
[TimeControl "40/5400+30:1800+30"]
[WhiteTitle "IM"]
[BlackTitle "IM"]
[WhiteFideId "1520857"]
[BlackFideId "1502778"]
[WhiteElo "2351"]
[BlackElo "2483"]

1. d4 {[%clk 01:30:52]} {[%emt 00:00:06]} Nf6 {[%clk 01:30:39]} {[%emt
00:00:23]} 2. c4 {[%clk 01:31:04]} {[%emt 00:00:17]} e6 {[%clk 01:30:45]}
{[%emt 00:00:25]} 3. Nf3 {[%clk 01:31:06]} {[%emt 00:00:27]} d5 {[%clk
01:30:48]} {[%emt 00:00:28]} 4. g3 {[%clk 01:31:15]} {[%emt 00:00:20]} Bb4+
{[%clk 01:30:28]} {[%emt 00:00:51]} 5. Bd2 {[%clk 01:31:28]} {[%emt 00:00:16]}
Bd6 {[%clk 01:30:42]} {[%emt 00:00:18]} 6. Nc3 {[%clk 01:30:44]} {[%emt
00:01:12]} c6 {[%clk 01:27:49]} {[%emt 00:03:24]} 7. Qc2 {[%clk 01:30:47]}
{[%emt 00:00:26]} Nbd7 {[%clk 01:27:03]} {[%emt 00:01:18]} 8. e4 {[%clk
01:30:21]} {[%emt 00:00:54]} dxe4 {[%clk 01:21:45]} {[%emt 00:05:49]} 9. Nxe4
{[%clk 01:29:56]} {[%emt 00:00:53]} Nxe4 {[%clk 01:22:12]} {[%emt 00:00:05]} 10.
Qxe4 {[%clk 01:30:06]} {[%emt 00:00:19]} Qe7 {[%clk 01:20:55]} {[%emt
00:01:48]} 11. Bg2 {[%clk 01:24:34]} {[%emt 00:06:00]} O-O {[%clk 01:19:57]}
{[%emt 00:01:29]} 12. O-O {[%clk 01:24:11]} {[%emt 00:00:52]} e5 {[%clk
01:12:11]} {[%emt 00:08:18]} 13. Rfe1 {[%clk 01:16:43]} {[%emt 00:07:57]} f5
{[%clk 01:10:44]} {[%emt 00:01:59]} 14. Qc2 {[%clk 01:09:37]} {[%emt 00:07:34]}
e4 {[%clk 01:10:15]} {[%emt 00:01:00]} 15. Bc3 {[%clk 01:00:59]} {[%emt
00:09:07]} Qf7 {[%clk 01:00:35]} {[%emt 00:10:11]} 16. Nd2 {[%clk 00:39:15]}
{[%emt 00:22:13]} Nf6 {[%clk 00:59:02]} {[%emt 00:02:04]} 17. Rad1 {[%clk
00:38:50]} {[%emt 00:00:54]} Be6 {[%clk 00:53:54]} {[%emt 00:05:40]} 18. b3
{[%clk 00:32:15]} {[%emt 00:07:04]} b5 {[%clk 00:48:53]} {[%emt 00:05:32]} 19.
Bb2 {[%clk 00:29:09]} {[%emt 00:03:35]} Rae8 {[%clk 00:45:43]} {[%emt
00:03:41]} 20. cxb5 {[%clk 00:18:37]} {[%emt 00:11:01]} cxb5 {[%clk 00:45:43]}
{[%emt 00:00:30]} 21. Qc6 {[%clk 00:17:52]} {[%emt 00:01:14]} Qd7 {[%clk
00:42:19]} {[%emt 00:03:55]} 22. Qxd7 {[%clk 00:17:39]} {[%emt 00:00:43]} Bxd7
{[%clk 00:41:27]} {[%emt 00:01:22]} 23. Rc1 {[%clk 00:10:00]} {[%emt 00:08:08]}
Nd5 {[%clk 00:37:57]} {[%emt 00:04:01]} 24. Nf1 {[%clk 00:09:06]} {[%emt
00:01:22]} g5 {[%clk 00:29:07]} {[%emt 00:09:21]} 25. a3 {[%clk 00:03:00]}
{[%emt 00:06:37]} b4 {[%clk 00:19:49]} {[%emt 00:09:49]} 26. a4 {[%clk
00:02:13]} {[%emt 00:01:16]} Nc3 {[%clk 00:18:20]} {[%emt 00:01:59]} 27. Nd2
{[%clk 00:00:50]} {[%emt 00:01:53]} Be6 {[%clk 00:18:05]} {[%emt 00:00:45]} 28.
f3 {[%clk 00:00:35]} {[%emt 00:00:44]} e3 {[%clk 00:14:39]} {[%emt 00:03:57]}
29. Bxc3 {[%clk 00:00:36]} {[%emt 00:00:29]} bxc3 {[%clk 00:14:48]} {[%emt
00:00:21]} 30. Nc4 {[%clk 00:00:48]} {[%emt 00:00:17]} Bxc4 {[%clk 00:11:20]}
{[%emt 00:03:59]} 31. bxc4 {[%clk 00:01:12]} {[%emt 00:00:05]} Ba3 {[%clk
00:11:11]} {[%emt 00:00:38]} 32. Rxc3 {[%clk 00:00:32]} {[%emt 00:01:11]} Bb4
{[%clk 00:11:18]} {[%emt 00:00:24]} 33. Rexe3 {[%clk 00:00:53]} {[%emt
00:00:08]} Bxc3 {[%clk 00:11:44]} {[%emt 00:00:04]} 34. Rxc3 {[%clk 00:01:15]}
{[%emt 00:00:08]} Re1+ {[%clk 00:09:48]} {[%emt 00:02:27]} 35. Kf2 {[%clk
00:00:35]} {[%emt 00:01:10]} Rd1 {[%clk 00:10:02]} {[%emt 00:00:16]} 36. d5
{[%clk 00:00:32]} {[%emt 00:00:33]} Rd2+ {[%clk 00:10:17]} {[%emt 00:00:15]} 37.
Kf1 {[%clk 00:00:31]} {[%emt 00:00:31]} Rb8 {[%clk 00:09:02]} {[%emt 00:01:45]}
38. Rc1 {[%clk 00:00:35]} {[%emt 00:00:26]} Rbb2 {[%clk 00:09:03]} {[%emt
00:00:30]} 39. Bh1 {[%clk 00:00:53]} {[%emt 00:00:11]} Rxh2 {[%clk 00:08:02]}
{[%emt 00:01:31]} 40. Kg1 {[%clk 00:31:15]} {[%emt 00:00:07]} Rhc2 {[%clk
00:36:56]} {[%emt 00:01:37]} 41. Rd1 {[%clk 00:31:14]} {[%emt 00:00:31]} f4
{[%clk 00:33:51]} {[%emt 00:03:35]} 42. gxf4 {[%clk 00:30:07]} {[%emt
00:01:36]} gxf4 {[%clk 00:33:44]} {[%emt 00:00:38]} 43. d6 {[%clk 00:27:38]}
{[%emt 00:02:58]} Rd2 {[%clk 00:33:53]} {[%emt 00:00:22]} 44. Rxd2 {[%clk
00:27:31]} {[%emt 00:00:36]} Rxd2 {[%clk 00:34:20]} {[%emt 00:00:04]} 45. c5
{[%clk 00:27:48]} {[%emt 00:00:13]} Rd5 {[%clk 00:33:47]} {[%emt 00:01:02]} 46.
Bg2 {[%clk 00:28:02]} {[%emt 00:00:15]} Kf7 {[%clk 00:33:34]} {[%emt 00:00:44]}
47. Bh3 {[%clk 00:27:57]} {[%emt 00:00:35]} Rxc5 {[%clk 00:33:54]} {[%emt
00:00:11]} 48. d7 {[%clk 00:28:14]} {[%emt 00:00:12]} Ke7 {[%clk 00:34:09]}
{[%emt 00:00:15]} 0-1

[Event "Norwegian Championship 2022"]
[Site "Kongsvinger, Norway"]
[Date "2022.07.08"]
[Round "1"]
[White "Abdrlauf, Elham"]
[Black "Stanford, Maxim Barth"]
[Result "1-0"]
[Board "6"]
[TimeControl "40/5400+30:1800+30"]
[WhiteTitle "FM"]
[BlackTitle "IM"]
[WhiteFideId "1533533"]
[BlackFideId "408280"]
[WhiteElo "2466"]
[BlackElo "2308"]

1. e4 {[%clk 01:30:56]} {[%emt 00:00:03]} c5 {[%clk 01:30:46]} {[%emt
00:00:14]} 2. c3 {[%clk 01:31:10]} {[%emt 00:00:16]} Nf6 {[%clk 01:31:01]}
{[%emt 00:00:15]} 3. e5 {[%clk 01:31:10]} {[%emt 00:00:30]} Nd5 {[%clk
01:31:26]} {[%emt 00:00:05]} 4. Nf3 {[%clk 01:31:22]} {[%emt 00:00:18]} Nc6
{[%clk 01:31:31]} {[%emt 00:00:24]} 5. Bc4 {[%clk 01:30:27]} {[%emt 00:01:25]}
Nb6 {[%clk 01:31:25]} {[%emt 00:00:37]} 6. Bb3 {[%clk 01:30:45]} {[%emt
00:00:13]} c4 {[%clk 01:31:15]} {[%emt 00:00:40]} 7. Bc2 {[%clk 01:30:46]}
{[%emt 00:00:30]} Qc7 {[%clk 01:31:26]} {[%emt 00:00:18]} 8. O-O {[%clk
01:30:38]} {[%emt 00:00:37]} Nxe5 {[%clk 01:30:05]} {[%emt 00:01:51]} 9. Nxe5
{[%clk 01:30:58]} {[%emt 00:00:10]} Qxe5 {[%clk 01:30:29]} {[%emt 00:00:06]} 10.
Re1 {[%clk 01:31:23]} {[%emt 00:00:05]} Qc7 {[%clk 01:27:37]} {[%emt 00:03:21]}
11. a4 {[%clk 01:31:33]} {[%emt 00:00:21]} e6 {[%clk 01:20:12]} {[%emt
00:07:55]} 12. Na3 {[%clk 01:31:39]} {[%emt 00:00:24]} a6 {[%clk 01:18:56]}
{[%emt 00:01:46]} 13. d4 {[%clk 01:31:02]} {[%emt 00:01:06]} d5 {[%clk
01:14:00]} {[%emt 00:05:26]} 14. Qf3 {[%clk 00:55:05]} {[%emt 00:36:27]} Be7
{[%clk 01:06:05]} {[%emt 00:08:25]} 15. a5 {[%clk 00:45:10]} {[%emt 00:10:25]}
Nd7 {[%clk 01:03:08]} {[%emt 00:03:27]} 16. Bf4 {[%clk 00:45:28]} {[%emt
00:00:12]} Bd6 {[%clk 00:55:18]} {[%emt 00:08:21]} 17. Bg5 {[%clk 00:45:52]}
{[%emt 00:00:06]} Nf6 {[%clk 00:39:27]} {[%emt 00:16:21]} 18. Bxf6 {[%clk
00:44:36]} {[%emt 00:01:46]} gxf6 {[%clk 00:39:52]} {[%emt 00:00:06]} 19. Qxd5
{[%clk 00:44:23]} {[%emt 00:00:42]} Bxh2+ {[%clk 00:33:24]} {[%emt 00:06:59]}
20. Kh1 {[%clk 00:41:07]} {[%emt 00:03:46]} h5 {[%clk 00:24:03]} {[%emt
00:09:51]} 21. Nxc4 {[%clk 00:32:31]} {[%emt 00:09:06]} Bd7 {[%clk 00:16:06]}
{[%emt 00:08:28]} 22. Nb6 {[%clk 00:32:23]} {[%emt 00:00:38]} Bc6 {[%clk
00:10:09]} {[%emt 00:06:27]} 23. Nxa8 {[%clk 00:20:39]} {[%emt 00:12:14]} Qf4
{[%clk 00:06:15]} {[%emt 00:04:23]} 24. Ba4 {[%clk 00:21:02]} {[%emt 00:00:07]}
Bxa4 {[%clk 00:06:11]} {[%emt 00:00:34]} 25. Rxa4 {[%clk 00:19:51]} {[%emt
00:01:42]} Qxf2 {[%clk 00:05:13]} {[%emt 00:01:28]} 26. Rxe6+ {[%clk 00:12:25]}
{[%emt 00:07:56]} fxe6 {[%clk 00:05:23]} {[%emt 00:00:20]} 27. Qxe6+ {[%clk
00:12:52]} {[%emt 00:00:03]} Kf8 {[%clk 00:05:30]} {[%emt 00:00:23]} 28. Kxh2
{[%clk 00:12:50]} {[%emt 00:00:33]} Rg8 {[%clk 00:05:13]} {[%emt 00:00:47]} 29.
Qc8+ {[%clk 00:10:27]} {[%emt 00:02:52]} Kg7 {[%clk 00:05:33]} {[%emt
00:00:10]} 30. Qxb7+ {[%clk 00:10:56]} {[%emt 00:00:02]} Kh6 {[%clk 00:05:24]}
{[%emt 00:00:38]} 31. Qf3 {[%clk 00:10:35]} {[%emt 00:00:51]} Qh4+ {[%clk
00:04:18]} {[%emt 00:01:36]} 32. Kg1 {[%clk 00:10:21]} {[%emt 00:00:44]} Rxa8
{[%clk 00:04:14]} {[%emt 00:00:34]} 33. Ra1 {[%clk 00:10:38]} {[%emt 00:00:13]}
Re8 {[%clk 00:04:15]} {[%emt 00:00:28]} 34. Qf2 {[%clk 00:09:20]} {[%emt
00:01:48]} Qg5 {[%clk 00:04:16]} {[%emt 00:00:29]} 35. Rd1 {[%clk 00:09:43]}
{[%emt 00:00:07]} Re4 {[%clk 00:03:37]} {[%emt 00:01:09]} 36. Qd2 {[%clk
00:09:39]} {[%emt 00:00:35]} Rf4 {[%clk 00:03:32]} {[%emt 00:00:35]} 37. d5
{[%clk 00:08:40]} {[%emt 00:01:29]} Kg7 {[%clk 00:03:59]} {[%emt 00:00:03]} 38.
Qe2 {[%clk 00:03:22]} {[%emt 00:05:49]} h4 {[%clk 00:02:23]} {[%emt 00:02:06]}
39. Rd3 {[%clk 00:02:00]} {[%emt 00:01:52]} Qf5 {[%clk 00:00:48]} {[%emt
00:02:05]} 40. d6 {[%clk 00:31:15]} {[%emt 00:01:15]} Qc5+ {[%clk 00:30:45]}
{[%emt 00:00:32]} 41. Qe3 {[%clk 00:30:30]} {[%emt 00:01:15]} Qf5 {[%clk
00:29:14]} {[%emt 00:02:01]} 42. d7 {[%clk 00:30:11]} {[%emt 00:00:49]} Rf1+
{[%clk 00:28:03]} {[%emt 00:01:41]} 43. Kh2 {[%clk 00:30:37]} {[%emt 00:00:04]}
1-0

[Event "Norwegian Championship 2022"]
[Site "Kongsvinger, Norway"]
[Date "2022.07.08"]
[Round "1"]
[White "Sjøberg, Isak"]
[Black "Elsness, Frode"]
[Result "0-1"]
[Board "7"]
[TimeControl "40/5400+30:1800+30"]
[WhiteTitle "FM"]
[BlackTitle "IM"]
[WhiteFideId "1521640"]
[BlackFideId "1501100"]
[WhiteElo "2308"]
[BlackElo "2464"]

1. e4 {[%clk 01:30:58]} {[%emt 00:00:01]} e5 {[%clk 01:30:54]} {[%emt
00:00:07]} 2. Nf3 {[%clk 01:31:22]} {[%emt 00:00:05]} Nc6 {[%clk 01:31:20]}
{[%emt 00:00:05]} 3. Nc3 {[%clk 01:27:33]} {[%emt 00:04:19]} Nf6 {[%clk
01:31:29]} {[%emt 00:00:21]} 4. d4 {[%clk 01:28:00]} {[%emt 00:00:03]} exd4
{[%clk 01:31:45]} {[%emt 00:00:14]} 5. Nxd4 {[%clk 01:27:55]} {[%emt 00:00:33]}
Bb4 {[%clk 01:31:45]} {[%emt 00:00:30]} 6. Nxc6 {[%clk 01:28:18]} {[%emt
00:00:08]} bxc6 {[%clk 01:32:09]} {[%emt 00:00:05]} 7. Bd3 {[%clk 01:28:45]}
{[%emt 00:00:04]} O-O {[%clk 01:32:27]} {[%emt 00:00:13]} 8. O-O {[%clk
01:29:12]} {[%emt 00:00:03]} d5 {[%clk 01:32:32]} {[%emt 00:00:24]} 9. exd5
{[%clk 01:29:34]} {[%emt 00:00:09]} cxd5 {[%clk 01:32:54]} {[%emt 00:00:08]} 10.
Bg5 {[%clk 01:27:38]} {[%emt 00:02:26]} c6 {[%clk 01:33:04]} {[%emt 00:00:20]}
11. Qf3 {[%clk 01:27:58]} {[%emt 00:00:10]} h6 {[%clk 01:32:52]} {[%emt
00:00:42]} 12. Bxf6 {[%clk 01:26:13]} {[%emt 00:02:16]} Qxf6 {[%clk 01:33:09]}
{[%emt 00:00:12]} 13. Qxf6 {[%clk 01:26:41]} {[%emt 00:00:03]} gxf6 {[%clk
01:33:34]} {[%emt 00:00:05]} 14. Ne2 {[%clk 01:27:06]} {[%emt 00:00:04]} Rb8
{[%clk 01:26:37]} {[%emt 00:07:27]} 15. b3 {[%clk 01:25:22]} {[%emt 00:02:14]}
Re8 {[%clk 01:24:08]} {[%emt 00:02:59]} 16. Rad1 {[%clk 01:12:57]} {[%emt
00:12:56]} Bg4 {[%clk 01:07:36]} {[%emt 00:17:02]} 17. f3 {[%clk 01:07:12]}
{[%emt 00:06:15]} Bd7 {[%clk 01:04:42]} {[%emt 00:03:24]} 18. c4 {[%clk
01:01:02]} {[%emt 00:06:40]} Re5 {[%clk 01:00:06]} {[%emt 00:05:05]} 19. Ng3
{[%clk 00:55:54]} {[%emt 00:05:38]} Rd8 {[%clk 00:41:16]} {[%emt 00:19:21]} 20.
f4 {[%clk 00:40:25]} {[%emt 00:15:59]} Re3 {[%clk 00:40:15]} {[%emt 00:01:30]}
21. Be2 {[%clk 00:31:37]} {[%emt 00:09:19]} d4 {[%clk 00:33:24]} {[%emt
00:07:21]} 22. Rf3 {[%clk 00:25:07]} {[%emt 00:07:01]} Rde8 {[%clk 00:21:42]}
{[%emt 00:12:12]} 23. Rxe3 {[%clk 00:24:54]} {[%emt 00:00:43]} Rxe3 {[%clk
00:22:11]} {[%emt 00:00:01]} 24. Kf1 {[%clk 00:24:19]} {[%emt 00:01:05]} c5
{[%clk 00:17:22]} {[%emt 00:05:19]} 25. Rd3 {[%clk 00:23:20]} {[%emt 00:01:28]}
Re6 {[%clk 00:16:04]} {[%emt 00:01:48]} 26. Kf2 {[%clk 00:18:36]} {[%emt
00:05:15]} Ra6 {[%clk 00:14:35]} {[%emt 00:01:59]} 27. a4 {[%clk 00:15:43]}
{[%emt 00:03:22]} Kf8 {[%clk 00:12:39]} {[%emt 00:02:25]} 28. Rd1 {[%clk
00:10:23]} {[%emt 00:05:50]} Rb6 {[%clk 00:10:33]} {[%emt 00:02:37]} 29. Bd3
{[%clk 00:10:11]} {[%emt 00:00:42]} Bc3 {[%clk 00:09:48]} {[%emt 00:01:16]} 30.
Rb1 {[%clk 00:10:16]} {[%emt 00:00:25]} Bb4 {[%clk 00:06:55]} {[%emt 00:03:22]}
31. f5 {[%clk 00:08:39]} {[%emt 00:02:07]} Bd2 {[%clk 00:02:40]} {[%emt
00:04:45]} 32. Nh5 {[%clk 00:06:04]} {[%emt 00:03:06]} Ke7 {[%clk 00:02:35]}
{[%emt 00:00:35]} 33. g4 {[%clk 00:05:59]} {[%emt 00:00:36]} Bc6 {[%clk
00:02:34]} {[%emt 00:00:29]} 34. Ke2 {[%clk 00:03:25]} {[%emt 00:03:05]} Bg5
{[%clk 00:02:44]} {[%emt 00:00:19]} 35. Ng3 {[%clk 00:01:43]} {[%emt 00:02:13]}
Bf4 {[%clk 00:02:12]} {[%emt 00:01:02]} 36. Kf2 {[%clk 00:02:12]} {[%emt
00:00:01]} Kd6 {[%clk 00:01:46]} {[%emt 00:00:56]} 37. Ne4+ {[%clk 00:00:47]}
{[%emt 00:01:56]} Bxe4 {[%clk 00:02:09]} {[%emt 00:00:07]} 38. Bxe4 {[%clk
00:01:15]} {[%emt 00:00:02]} Bxh2 {[%clk 00:01:18]} {[%emt 00:01:21]} 39. Kf3
{[%clk 00:01:16]} {[%emt 00:00:28]} Rb8 {[%clk 00:01:07]} {[%emt 00:00:42]} 40.
Rb2 {[%clk 00:30:36]} {[%emt 00:01:09]} Bg1 {[%clk 00:30:58]} {[%emt 00:00:39]}
41. Rb1 {[%clk 00:21:06]} {[%emt 00:10:01]} Be3 {[%clk 00:30:57]} {[%emt
00:00:30]} 42. Bd5 {[%clk 00:19:59]} {[%emt 00:01:38]} Bg5 {[%clk 00:30:39]}
{[%emt 00:00:47]} 43. Be4 {[%clk 00:19:57]} {[%emt 00:00:32]} Re8 {[%clk
00:26:55]} {[%emt 00:04:13]} 44. Rd1 {[%clk 00:11:49]} {[%emt 00:08:39]} Rh8
{[%clk 00:25:45]} {[%emt 00:01:40]} 45. Rh1 {[%clk 00:08:31]} {[%emt 00:03:49]}
Kc7 {[%clk 00:24:08]} {[%emt 00:02:07]} 46. Ke2 {[%clk 00:08:04]} {[%emt
00:00:58]} Re8 {[%clk 00:23:34]} {[%emt 00:01:03]} 47. Kd3 {[%clk 00:08:30]}
{[%emt 00:00:03]} Rb8 {[%clk 00:21:37]} {[%emt 00:02:27]} 48. Rb1 {[%clk
00:08:38]} {[%emt 00:00:23]} Be3 {[%clk 00:21:32]} {[%emt 00:00:35]} 49. Rb2
{[%clk 00:08:11]} {[%emt 00:00:58]} Kd6 {[%clk 00:11:22]} {[%emt 00:10:41]} 50.
a5 {[%clk 00:07:20]} {[%emt 00:01:22]} Ke5 {[%clk 00:10:55]} {[%emt 00:00:56]}
51. Bf3 {[%clk 00:05:39]} {[%emt 00:02:11]} Kf4 {[%clk 00:10:38]} {[%emt
00:00:46]} 52. Bd1 {[%clk 00:06:00]} {[%emt 00:00:09]} Kg3 {[%clk 00:09:12]}
{[%emt 00:01:57]} 53. a6 {[%clk 00:03:37]} {[%emt 00:02:53]} Kf4 {[%clk
00:08:27]} {[%emt 00:01:14]} 54. Ra2 {[%clk 00:03:54]} {[%emt 00:00:14]} Rb6
{[%clk 00:07:37]} {[%emt 00:01:20]} 55. Ra5 {[%clk 00:04:09]} {[%emt 00:00:15]}
Rc6 {[%clk 00:07:17]} {[%emt 00:00:49]} 56. Be2 {[%clk 00:04:15]} {[%emt
00:00:25]} Rb6 {[%clk 00:05:07]} {[%emt 00:02:41]} 57. Bd1 {[%clk 00:04:25]}
{[%emt 00:00:19]} Rc6 {[%clk 00:04:49]} {[%emt 00:00:47]} 58. Be2 {[%clk
00:04:51]} {[%emt 00:00:04]} Bc1 {[%clk 00:03:13]} {[%emt 00:02:05]} 59. Ra1
{[%clk 00:03:23]} {[%emt 00:01:58]} Bb2 {[%clk 00:03:25]} {[%emt 00:00:17]} 60.
Rf1+ {[%clk 00:02:24]} {[%emt 00:01:30]} Ke5 {[%clk 00:03:32]} {[%emt
00:00:23]} 61. Rh1 {[%clk 00:01:56]} {[%emt 00:00:59]} Rxa6 {[%clk 00:03:31]}
{[%emt 00:00:32]} 62. Rxh6 {[%clk 00:02:22]} {[%emt 00:00:03]} Bc3 {[%clk
00:03:18]} {[%emt 00:00:43]} 63. Bd1 {[%clk 00:00:43]} {[%emt 00:02:09]} Ra1
{[%clk 00:03:26]} {[%emt 00:00:22]} 64. Rh1 {[%clk 00:00:38]} {[%emt 00:00:36]}
Kf4 {[%clk 00:01:49]} {[%emt 00:02:06]} 65. Kc2 {[%clk 00:00:52]} {[%emt
00:00:16]} Ra2+ {[%clk 00:01:43]} {[%emt 00:00:36]} 66. Kb1 {[%clk 00:01:16]}
{[%emt 00:00:07]} Rb2+ {[%clk 00:01:56]} {[%emt 00:00:17]} 67. Kc1 {[%clk
00:01:29]} {[%emt 00:00:17]} d3 {[%clk 00:01:54]} {[%emt 00:00:31]} 0-1

[Event "Norwegian Championship 2022"]
[Site "Kongsvinger, Norway"]
[Date "2022.07.09"]
[Round "2"]
[White "Hammer, Jon Ludvig"]
[Black "Abdrlauf, Elham"]
[Result "1-0"]
[Board "1"]
[TimeControl "40/5400+30:1800+30"]
[WhiteTitle "GM"]
[BlackTitle "FM"]
[WhiteFideId "1503707"]
[BlackFideId "1533533"]
[WhiteElo "2638"]
[BlackElo "2466"]

1. e4 {[%clk 01:30:59]} {[%emt 05:30:01]} c6 {[%clk 01:20:38]} {[%emt
00:10:28]} 2. d4 {[%clk 01:31:20]} {[%emt 00:00:09]} d5 {[%clk 01:20:58]}
{[%emt 00:00:11]} 3. e5 {[%clk 01:31:44]} {[%emt 00:00:06]} c5 {[%clk
01:21:21]} {[%emt 00:00:07]} 4. Nf3 {[%clk 01:31:47]} {[%emt 00:00:26]} cxd4
{[%clk 01:21:44]} {[%emt 00:00:08]} 5. Nxd4 {[%clk 01:32:09]} {[%emt 00:00:08]}
Nc6 {[%clk 01:22:10]} {[%emt 00:00:03]} 6. Nxc6 {[%clk 01:32:16]} {[%emt
00:00:22]} bxc6 {[%clk 01:22:33]} {[%emt 00:00:08]} 7. Bd3 {[%clk 01:32:34]}
{[%emt 00:00:12]} e6 {[%clk 01:23:00]} {[%emt 00:00:04]} 8. O-O {[%clk
01:32:31]} {[%emt 00:00:32]} Ne7 {[%clk 01:23:26]} {[%emt 00:00:05]} 9. Nd2
{[%clk 01:32:40]} {[%emt 00:00:21]} a5 {[%clk 01:23:15]} {[%emt 00:00:40]} 10.
c4 {[%clk 01:31:48]} {[%emt 00:01:22]} Ng6 {[%clk 01:20:14]} {[%emt 00:03:31]}
11. Nf3 {[%clk 01:32:07]} {[%emt 00:00:12]} Be7 {[%clk 01:19:59]} {[%emt
00:00:45]} 12. g3 {[%clk 01:21:44]} {[%emt 00:10:53]} O-O {[%clk 01:04:02]}
{[%emt 00:16:27]} 13. h4 {[%clk 01:20:38]} {[%emt 00:01:36]} f5 {[%clk
01:03:21]} {[%emt 00:01:11]} 14. h5 {[%clk 01:06:41]} {[%emt 00:14:27]} Nh8
{[%clk 01:03:41]} {[%emt 00:00:10]} 15. cxd5 {[%clk 01:07:06]} {[%emt
00:00:06]} cxd5 {[%clk 01:01:46]} {[%emt 00:02:24]} 16. Be3 {[%clk 01:03:50]}
{[%emt 00:03:45]} Nf7 {[%clk 00:54:42]} {[%emt 00:07:35]} 17. Rc1 {[%clk
00:48:19]} {[%emt 00:16:02]} Bd7 {[%clk 00:32:53]} {[%emt 00:22:19]} 18. Qe2
{[%clk 00:41:24]} {[%emt 00:07:24]} Qb8 {[%clk 00:25:14]} {[%emt 00:08:09]} 19.
Bd4 {[%clk 00:32:34]} {[%emt 00:09:20]} Nh6 {[%clk 00:18:32]} {[%emt 00:07:11]}
20. Rc3 {[%clk 00:29:41]} {[%emt 00:03:23]} Rc8 {[%clk 00:17:31]} {[%emt
00:01:31]} 21. Rfc1 {[%clk 00:19:26]} {[%emt 00:10:45]} Qb7 {[%clk 00:17:44]}
{[%emt 00:00:17]} 22. Nh2 {[%clk 00:16:27]} {[%emt 00:03:29]} Bb4 {[%clk
00:13:40]} {[%emt 00:04:34]} 23. R3c2 {[%clk 00:15:52]} {[%emt 00:01:06]} Rxc2
{[%clk 00:12:08]} {[%emt 00:02:02]} 24. Rxc2 {[%clk 00:16:20]} {[%emt
00:00:02]} Rc8 {[%clk 00:12:25]} {[%emt 00:00:12]} 25. g4 {[%clk 00:15:51]}
{[%emt 00:00:59]} Rxc2 {[%clk 00:12:01]} {[%emt 00:00:53]} 26. Qxc2 {[%clk
00:16:14]} {[%emt 00:00:07]} Qc6 {[%clk 00:10:56]} {[%emt 00:01:35]} 27. Qxc6
{[%clk 00:06:37]} {[%emt 00:10:07]} Bxc6 {[%clk 00:11:18]} {[%emt 00:00:08]} 28.
g5 {[%clk 00:05:31]} {[%emt 00:01:37]} Nf7 {[%clk 00:11:41]} {[%emt 00:00:06]}
29. a3 {[%clk 00:04:36]} {[%emt 00:01:26]} Bd2 {[%clk 00:09:45]} {[%emt
00:02:26]} 30. g6 {[%clk 00:01:29]} {[%emt 00:03:37]} hxg6 {[%clk 00:09:41]}
{[%emt 00:00:34]} 31. Nf3 {[%clk 00:01:52]} {[%emt 00:00:07]} Bf4 {[%clk
00:08:55]} {[%emt 00:01:16]} 32. hxg6 {[%clk 00:02:16]} {[%emt 00:00:07]} Nh8
{[%clk 00:09:15]} {[%emt 00:00:09]} 33. b4 {[%clk 00:02:39]} {[%emt 00:00:07]}
axb4 {[%clk 00:09:26]} {[%emt 00:00:19]} 34. axb4 {[%clk 00:03:08]} {[%emt
00:00:01]} Bb7 {[%clk 00:06:44]} {[%emt 00:03:12]} 35. Nh4 {[%clk 00:03:36]}
{[%emt 00:00:01]} Bg5 {[%clk 00:03:40]} {[%emt 00:03:35]} 36. Nxf5 {[%clk
00:03:50]} {[%emt 00:00:16]} exf5 {[%clk 00:03:45]} {[%emt 00:00:25]} 37. Bxf5
{[%clk 00:04:17]} {[%emt 00:00:02]} Kf8 {[%clk 00:03:30]} {[%emt 00:00:45]} 38.
b5 {[%clk 00:04:40]} {[%emt 00:00:07]} Ke7 {[%clk 00:00:55]} {[%emt 00:03:05]}
39. Kg2 {[%clk 00:04:56]} {[%emt 00:00:14]} Kd8 {[%clk 00:00:32]} {[%emt
00:00:54]} 40. Kg3 {[%clk 00:35:20]} {[%emt 00:00:05]} Be7 {[%clk 00:30:32]}
{[%emt 00:00:31]} 41. Kg4 {[%clk 00:34:31]} {[%emt 00:01:18]} Bb4 {[%clk
00:29:09]} {[%emt 00:01:54]} 42. f4 {[%clk 00:28:47]} {[%emt 00:06:14]} Bd2
{[%clk 00:23:42]} {[%emt 00:05:57]} 43. Bd3 {[%clk 00:21:11]} {[%emt 00:08:06]}
Bc8+ {[%clk 00:23:38]} {[%emt 00:00:34]} 44. Kg3 {[%clk 00:21:31]} {[%emt
00:00:08]} Bd7 {[%clk 00:16:16]} {[%emt 00:07:54]} 45. b6 {[%clk 00:19:18]}
{[%emt 00:02:43]} Bb5 {[%clk 00:13:19]} {[%emt 00:03:27]} 46. Bxb5 {[%clk
00:11:10]} {[%emt 00:08:37]} Nxg6 {[%clk 00:13:42]} {[%emt 00:00:07]} 47. Kg4
{[%clk 00:11:34]} {[%emt 00:00:06]} Nxf4 {[%clk 00:12:44]} {[%emt 00:01:28]} 48.
Ba6 {[%clk 00:08:27]} {[%emt 00:03:38]} Ng6 {[%clk 00:12:03]} {[%emt 00:01:10]}
49. e6 {[%clk 00:08:47]} {[%emt 00:00:10]} Bb4 {[%clk 00:10:04]} {[%emt
00:02:28]} 50. b7 {[%clk 00:04:39]} {[%emt 00:04:40]} Bd6 {[%clk 00:08:52]}
{[%emt 00:01:42]} 51. Bc5 {[%clk 00:05:04]} {[%emt 00:00:05]} Bb8 {[%clk
00:02:46]} {[%emt 00:06:35]} 52. Kg5 {[%clk 00:05:30]} {[%emt 00:00:03]} Ne7
{[%clk 00:02:39]} {[%emt 00:00:38]} 53. Bb5 {[%clk 00:05:48]} {[%emt 00:00:12]}
Ng8 {[%clk 00:02:15]} {[%emt 00:00:54]} 54. e7+ {[%clk 00:06:01]} {[%emt
00:00:17]} 1-0